fUSD/lending_fUSD_20241220
["ID","MTS","AMOUNT","RATE_DAILY","PERIOD"]
[346122112,1734719449370,-7392.2275,0.00023,5]
[346122113,1734719449383,-6300.0,0.00023,5]
[346122114,1734719628150,1000.0,0.00023,120]
[346122115,1734719637113,1000.0,0.00023,120]
[346122116,1734719638023,1000.0,0.00023,120]
[346122117,1734719638989,1000.0,0.00023,120]
[346122118,1734719639340,1000.0,0.00023,120]
[346122119,1734719639910,1000.0,0.00023,120]
[346122120,1734719640302,1000.0,0.00023,120]
[346122121,1734719640867,1000.0,0.00023,120]
[346122122,1734719641309,1000.0,0.00023,120]
[346122123,1734719646545,1000.0,0.00023,120]
[346122124,1734719655645,1000.0,0.00023,120]
[346122125,1734719704941,4187.10680749,0.000235,120]
[346122126,1734719798942,-160.77,0.00013699,2]
[346122127,1734719798964,-668.47267434,0.00017171,2]
[346122128,1734719798987,-166.85,0.00017271,2]
[346122129,1734719799008,-668.47267432,0.00018015,2]
[346122130,1734719799029,-668.47267432,0.00018858,2]
[346122131,1734719799052,-150.0,0.00018958,2]
[346122132,1734719799074,-828.0,0.00019851,2]
[346122133,1734719799099,-212.0,0.0002094,2]
[346122134,1734719799120,-500.0,0.00021064,2]
[346122135,1734719799142,-500.0,0.00021064,2]
[346122136,1734719799164,-212.0,0.0002138,2]
[346122137,1734719799186,-254.54,0.0002146,2]
[346122138,1734719799208,-1000.0,0.00021546,2]
[346122139,1734719799231,-788.81,0.0002164,2]
[346122140,1734719827179,500.0,0.00021064,2]
[346122141,1734719873222,450.0,0.00013,2]
[346122142,1734719874295,500.0,0.00015,2]
[346122143,1734719875386,550.0,0.00017,2]
[346122144,1734719876476,600.0,0.00019,2]
[346122145,1734719877557,650.0,0.00021,2]
[346122146,1734719898150,210.85,0.00017345,2]
[346122148,1734720011721,350.34,0.00010137,2]
[346122149,1734720011959,350.34,0.00016813,2]
[346122150,1734720019146,2215.017023,0.00021581,2]
[346122152,1734720074687,156.61,0.00021892,30]
[346122153,1734720302556,150.0,0.000216,4]
[346122154,1734720305941,156.30336801,0.000216,4]
[346122155,1734720313170,150.0,0.000216,4]
[346122156,1734720320533,175.8,0.00016712,2]
[346122157,1734720333127,151.3529296,0.000216,4]
[346122160,1734720430814,3167.0,0.0002,3]
[346122166,1734720431464,2850.0,0.0002,3]
[346122168,1734720547261,250.0,0.00021637,2]
[346122169,1734720573821,1000.0,0.00021637,2]
[346122170,1734720606131,410.2,0.00021637,2]
[346122179,1734720631826,-154.14,0.00021649,2]
[346122180,1734720631836,-162.39,0.00021653,2]
[346122181,1734720631846,-3328.86,0.0002169,2]
[346122182,1734720631855,-250.0,0.00021772,2]
[346122183,1734720631865,-250.0,0.0002178,2]
[346122184,1734720631875,-300.0,0.00021808,2]
[346122185,1734720631884,-150.0,0.00021808,2]
[346122186,1734720631894,-212.0,0.0002182,2]
[346122187,1734720631903,-506.43,0.0002185,2]
[346122188,1734720631914,-154.0,0.00022,2]
[346122189,1734720631924,-150.0,0.0002208,4]
[346122190,1734720631933,-828.0,0.00022115,2]
[346122191,1734720631942,-997.93,0.0002214,2]
[346122192,1734720631953,-212.0,0.0002226,2]
[346122193,1734720631964,-300.0,0.00022278,2]
[346122194,1734720631974,-64.90359455,0.00022279,2]
[346122195,1734720632007,-766.88865007,0.00022279,2]
[346122196,1734720632019,-1167.78587407,0.00022279,2]
[346122197,1734720632033,-486.87103,0.00022279,2]
[346122198,1734720632104,-639.39624444,0.00022279,2]
[346122208,1734720636709,-1207.44003,0.00022279,2]
[346122252,1734720637748,-686.03253807,0.00022279,2]
[346122253,1734720637791,-1827.4623212,0.00022279,2]
[346122254,1734720637826,-274.176,0.00022279,2]
[346122255,1734720637872,-7966.0552176,0.00022279,2]
[346122256,1734720637884,-769.82,0.000223,2]
[346122257,1734720637894,-770.21,0.000223,2]
[346122258,1734720637903,-770.21,0.000223,2]
[346122259,1734720637912,-770.21,0.000223,2]
[346122260,1734720637922,-770.21,0.000223,2]
[346122261,1734720637931,-757.58,0.000223,2]
[346122262,1734720637941,-500.0,0.00022314,4]
[346122263,1734720637951,-320.89,0.00022314,2]
[346122264,1734720637962,-163.94489961,0.00022314,4]
[346122265,1734720637972,-500.0,0.00022314,4]
[346122266,1734720637983,-165.19,0.00022366,2]
[346122267,1734720637994,-500.0,0.00022378,8]
[346122268,1734720638003,-500.0,0.00022378,4]
[346122269,1734720638013,-271.4,0.000225,2]
[346122270,1734720638023,-150.0,0.0002256,4]
[346122271,1734720638032,-500.0,0.00022588,4]
[346122272,1734720638044,-500.0,0.00022588,4]
[346122273,1734720638053,-632.0,0.00022592,2]
[346122274,1734720638062,-1897.0,0.00022592,2]
[346122275,1734720638073,-500.0,0.00022652,8]
[346122276,1734720638082,-1013.76,0.00022663,2]
[346122277,1734720638092,-994.19,0.00022663,2]
[346122278,1734720638102,-1009.9,0.00022663,2]
[346122279,1734720638112,-994.46,0.00022663,2]
[346122280,1734720638122,-1004.76,0.00022671,2]
[346122282,1734720638132,-998.84,0.00022671,2]
[346122284,1734720638141,-996.73,0.00022671,2]
[346122286,1734720638151,-987.69,0.00022671,2]
[346122288,1734720638160,-991.82,0.00022686,2]
[346122290,1734720638170,-1003.07,0.00022686,2]
[346122292,1734720638179,-987.53,0.00022686,2]
[346122294,1734720638189,-1017.88,0.00022686,2]
[346122296,1734720638198,-1019.45,0.00022686,2]
[346122298,1734720638207,-981.04,0.00022686,2]
[346122300,1734720638216,-1007.07,0.00022686,2]
[346122302,1734720638226,-1010.24,0.00022686,2]
[346122304,1734720638235,-987.51,0.00022686,2]
[346122306,1734720638244,-1001.57,0.00022686,2]
[346122308,1734720638254,-1013.8,0.00022686,2]
[346122310,1734720638263,-998.84,0.00022686,2]
[346122311,1734720638272,-983.2,0.00022686,2]
[346122312,1734720638281,-1016.41,0.00022686,2]
[346122314,1734720638292,-1014.3,0.00022686,2]
[346122316,1734720638301,-1012.35,0.00022686,2]
[346122318,1734720638310,-998.23,0.00022686,2]
[346122319,1734720638320,-1019.23,0.00022686,2]
[346122320,1734720638329,-995.75,0.00022686,2]
[346122322,1734720638338,-1000.19,0.00022686,2]
[346122324,1734720638348,-989.7,0.00022686,2]
[346122326,1734720638357,-1000.79,0.00022686,2]
[346122327,1734720638366,-994.58,0.00022686,2]
[346122329,1734720638375,-992.75,0.00022688,2]
[346122331,1734720638384,-989.17,0.00022688,2]
[346122333,1734720638394,-983.2,0.00022688,2]
[346122336,1734720638403,-1010.37,0.00022688,2]
[346122337,1734720638413,-1006.63,0.0002269,2]
[346122338,1734720638422,-1006.7,0.0002269,2]
[346122339,1734720638431,-985.8,0.0002269,2]
[346122340,1734720638441,-982.26,0.0002269,2]
[346122341,1734720638450,-981.47,0.0002269,2]
[346122342,1734720638459,-1017.51,0.0002269,2]
[346122343,1734720638468,-1011.69,0.0002269,2]
[346122344,1734720638478,-1008.03,0.0002269,2]
[346122345,1734720638487,-995.2,0.0002269,2]
[346122346,1734720638496,-1002.17,0.0002269,2]
[346122347,1734720638506,-96.35791337,0.000227,2]
[346122348,1734720638518,-115.64208663,0.000227,2]
[346122349,1734720638527,-425.54381104,0.0002277,2]
[346122350,1734720638548,-1303.54103896,0.0002277,2]
[346122351,1734720638557,-330.56,0.00022789,2]
[346122352,1734720638567,-150.0,0.00022789,2]
[346122353,1734720638576,-899.89896104,0.00022791,2]
[346122354,1734720638601,5132.69842806,0.00019953,2]
[346122358,1734720639820,-436.53203896,0.00022791,2]
[346122359,1734720639830,-1011.13,0.00022795,2]
[346122360,1734720639839,-150.0,0.000228,4]
[346122361,1734720639849,-500.0,0.00022811,2]
[346122362,1734720639858,-991.33,0.00022837,2]
[346122363,1734720639868,-997.22,0.00022837,2]
[346122364,1734720639878,-1016.28,0.00022847,2]
[346122365,1734720639887,-1019.68,0.00022847,2]
[346122366,1734720639897,-500.0,0.00022862,4]
[346122367,1734720639906,-500.0,0.00022862,4]
[346122368,1734720639916,-5000.0,0.000229,2]
[346122369,1734720639925,-608.88632824,0.000229,2]
[346122370,1734720639935,-500.0,0.00022926,8]
[346122371,1734720639944,-250.53,0.00022996,2]
[346122372,1734720639954,-216.144838,0.00022999,4]
[346122373,1734720639963,-500.0,0.00022999,4]
[346122374,1734720639973,-1027.0,0.00022999,4]
[346122375,1734720639983,-500.0,0.00022999,4]
[346122376,1734720639996,-500.0,0.00022999,4]
[346122377,1734720640005,-500.0,0.00022999,4]
[346122378,1734720640016,-1000.0,0.00022999,4]
[346122379,1734720640026,-500.0,0.00022999,4]
[346122380,1734720640035,-500.0,0.00022999,4]
[346122381,1734720640047,-319.42578501,0.00022999,4]
[346122382,1734720640056,-500.0,0.00022999,4]
[346122383,1734720640066,-515.16,0.00022999,4]
[346122384,1734720640076,-500.0,0.00022999,4]
[346122385,1734720640085,-500.0,0.00022999,4]
[346122386,1734720640094,-500.0,0.00022999,4]
[346122387,1734720640103,-500.0,0.00022999,4]
[346122388,1734720640112,-500.0,0.00022999,4]
[346122389,1734720640122,-528.48,0.00022999,4]
[346122390,1734720640132,-500.0,0.00022999,4]
[346122391,1734720640141,-888.07,0.00022999,4]
[346122392,1734720640151,-500.0,0.00022999,4]
[346122393,1734720640160,-500.0,0.00022999,4]
[346122394,1734720640170,-500.0,0.00022999,4]
[346122395,1734720640179,-465.07,0.00022999,4]
[346122397,1734720640188,-500.0,0.00022999,4]
[346122399,1734720640197,-500.0,0.00022999,4]
[346122401,1734720640207,-1078.32,0.00022999,4]
[346122403,1734720640216,-500.0,0.00022999,4]
[346122405,1734720640225,-831.34,0.00022999,4]
[346122407,1734720640234,-500.0,0.00022999,4]
[346122409,1734720640243,-500.0,0.00022999,4]
[346122411,1734720640252,-500.0,0.00022999,4]
[346122413,1734720640261,-500.0,0.00022999,4]
[346122414,1734720640270,-1206.09,0.00022999,4]
[346122416,1734720640279,-500.0,0.00022999,4]
[346122418,1734720640288,-500.0,0.00022999,4]
[346122420,1734720640299,-500.0,0.00022999,4]
[346122422,1734720640308,-500.0,0.00022999,4]
[346122424,1734720640317,-500.0,0.00022999,4]
[346122426,1734720640326,-500.0,0.00022999,4]
[346122428,1734720640335,-577.97,0.00022999,4]
[346122429,1734720640344,-557.17,0.00022999,4]
[346122430,1734720640353,-619.99,0.00022999,4]
[346122431,1734720640362,-500.0,0.00022999,4]
[346122432,1734720640371,-500.0,0.00022999,4]
[346122433,1734720640380,-762.05,0.00022999,4]
[346122434,1734720640389,-549.66,0.00022999,4]
[346122435,1734720640398,-874.64,0.00022999,4]
[346122436,1734720640408,-500.0,0.00022999,4]
[346122437,1734720640417,-500.0,0.00022999,4]
[346122438,1734720640426,-500.0,0.00022999,4]
[346122439,1734720640435,-500.0,0.00022999,4]
[346122440,1734720640444,-500.0,0.00022999,4]
[346122441,1734720640453,-500.0,0.00022999,4]
[346122442,1734720640463,-500.0,0.00022999,4]
[346122443,1734720640473,-2592.24,0.00022999,4]
[346122444,1734720640481,-500.0,0.00022999,4]
[346122445,1734720640491,-500.0,0.00022999,4]
[346122446,1734720640501,-217.3,0.00022999,4]
[346122447,1734720640510,-228.79100979,0.00022999,4]
[346122448,1734720640528,-271.20899021,0.00022999,4]
[346122449,1734720640538,-500.0,0.00022999,4]
[346122450,1734720640550,-500.0,0.00022999,4]
[346122451,1734720640560,-500.0,0.00022999,4]
[346122452,1734720640570,-500.0,0.00022999,4]
[346122453,1734720640580,-890.08,0.00022999,4]
[346122454,1734720640589,-500.0,0.00022999,4]
[346122455,1734720640599,-138.71100979,0.00022999,4]
[346122459,1734720642937,-1418.1644665,0.00022995,2]
[346122460,1734720642947,-183.9539604,0.00022999,4]
[346122461,1734720642958,-500.0,0.00022999,4]
[346122462,1734720642968,-500.0,0.00022999,4]
[346122463,1734720642979,-500.0,0.00022999,4]
[346122464,1734720642991,-500.0,0.00022999,4]
[346122465,1734720643002,-500.0,0.00022999,4]
[346122466,1734720643011,-500.0,0.00022999,4]
[346122467,1734720643021,-524.02095513,0.00022999,4]
[346122468,1734720643032,-500.0,0.00022999,4]
[346122469,1734720643044,-14566.91379288,0.00023,5]
[346122470,1734720643055,-6686.94682509,0.00023,7]
[346122471,1734720643069,-709.56670227,0.00023,7]
[346122472,1734720643104,-5499.68842467,0.00023,7]
[346122473,1734720643115,-8418.04537872,0.00023,7]
[346122474,1734720643126,-919.97299999,0.00023,7]
[346122475,1734720643138,-6672.71002478,0.00023,7]
[346122481,1734720643479,-913.07358999,0.00023,7]
[346122482,1734720643491,-851.44363264,0.00023,7]
[346122484,1734720645881,-500.0,0.00022999,4]
[346122485,1734720645891,-3843.58903492,0.00023,7]
[346122486,1734720645900,-676.2056131,0.00023,2]
[346122487,1734720645909,-298.38994807,0.00023,2]
[346122488,1734720645919,-1000.0,0.00023,23]
[346122489,1734720645928,-11811.47026594,0.00023,2]
[346122490,1734720645939,-1106.43640066,0.00023,2]
[346122492,1734720698981,500.0,0.00021064,2]
[346122493,1734720720637,500.0,0.00021064,2]
[346122494,1734720770434,964.13,0.0002019,2]
[346122496,1734720893083,1056.0,0.0001851,2]
[346122497,1734720895607,153.5,0.00010137,2]
[346122499,1734720903646,1056.0,0.00019436,2]
[346122500,1734720914203,1056.0,0.00017585,2]
[346122501,1734720924746,1056.0,0.00020407,2]
[346122504,1734721012799,156.61,0.00021898,30]
[346122505,1734721065940,153.0,0.00020026,2]
[346122506,1734721111736,758.42777675,0.00021569,2]
[346122507,1734721123054,153.0,0.00020026,2]
[346122508,1734721186110,153.0,0.00020026,2]
[346122509,1734721384579,4097.55,0.00021631,2]
[346122510,1734721431673,171.76,0.00021609,2]
[346122512,1734721503887,150.0,0.000216,4]
[346122513,1734721513432,158.25772748,0.000216,4]
[346122514,1734721515380,2794.61,0.00021639,2]
[346122515,1734721533342,500.0,0.00021639,2]
[346122520,1734721558068,1000.0,0.00021639,2]
[346122530,1734721666801,150.77065,0.00020712,4]
[346122531,1734721667086,150.77065,0.0002106,7]
[346122532,1734721698599,450.0,0.00013,2]
[346122533,1734721699689,500.0,0.00015,2]
[346122534,1734721700777,550.0,0.00017,2]
[346122535,1734721700972,915.92,0.00019711,2]
[346122536,1734721701870,600.0,0.00019,2]
[346122537,1734721702954,650.0,0.00021,2]
[346122538,1734721746048,5000.0,0.0002164,2]
[346122539,1734721817159,152.01,0.00010137,2]
[346122540,1734721817390,152.01,0.00016813,2]
[346122550,1734721832366,-250.0,0.00021653,2]
[346122551,1734721832376,-96.83119964,0.00021667,2]
[346122552,1734721832387,-12635.57880036,0.00021667,2]
[346122553,1734721832396,-153.5,0.00021669,2]
[346122554,1734721832405,-586.63,0.00021669,2]
[346122555,1734721832416,-250.0,0.00021669,2]
[346122556,1734721832425,-200.0,0.00021673,2]
[346122557,1734721832435,-1500.0,0.00021679,2]
[346122558,1734721832446,-96583.55,0.0002168,2]
[346122559,1734721832456,-369.35,0.00021686,2]
[346122560,1734721832466,-377.05,0.00021686,2]
[346122561,1734721832475,-1708.28,0.00021708,2]
[346122562,1734721832485,-53614.98,0.00021808,2]
[346122563,1734721832494,-500.41,0.00021847,2]
[346122564,1734721832503,-502.783,0.0002185,2]
[346122565,1734721832512,-1601.42,0.00021877,2]
[346122566,1734721832522,-915.92,0.00021975,2]
[346122567,1734721832534,-10000.0,0.00022,2]
[346122568,1734721832543,-10005.24223639,0.00022,9]
[346122569,1734721832553,-154.0,0.00022,2]
[346122570,1734721832562,-250.0,0.00022027,2]
[346122572,1734721832572,-484.17,0.00022092,2]
[346122574,1734721832582,-3103.0,0.00022094,2]
[346122576,1734721832591,-924.1,0.00022144,2]
[346122578,1734721832601,-500.0,0.0002216,2]
[346122580,1734721832610,-6933.4521391,0.00022335,2]
[346122581,1734721832619,-3484.9267827,0.00022338,2]
[346122582,1734721832629,-3484.9267827,0.00022338,2]
[346122583,1734721832639,-646.90828757,0.00022339,2]
[346122584,1734721832648,-6933.4521391,0.0002234,2]
[346122585,1734721832658,-743.59962691,0.00022341,2]
[346122586,1734721832667,-743.59962691,0.00022342,2]
[346122587,1734721832677,-354.86152271,0.00022343,2]
[346122588,1734721832686,-3484.9267827,0.00022345,2]
[346122589,1734721832695,-646.90828757,0.00022348,2]
[346122590,1734721832705,-6933.4521391,0.00022348,2]
[346122591,1734721832715,-62693.5424745,0.00022348,2]
[346122592,1734721832724,-354.86152271,0.00022349,2]
[346122593,1734721832733,-6933.4521391,0.00022354,2]
[346122594,1734721832742,-378.58880564,0.00022358,2]
[346122595,1734721832752,-9012.32187778,0.00022359,2]
[346122596,1734721838127,-4578.63978,0.00022359,2]
[346122604,1734721840370,-2474.05663637,0.00022359,2]
[346122615,1734721843086,-489.29187735,0.00022359,2]
[346122616,1734721843152,-701.666667,0.00022359,2]
[346122617,1734721843165,-34386.99999996,0.00022359,2]
[346122618,1734721843220,-792.83061176,0.00022359,2]
[346122619,1734721843231,-341.53647844,0.00022359,2]
[346122620,1734721843243,-2547.91315279,0.00022359,2]
[346122621,1734721843408,-2430.7,0.00022359,2]
[346122622,1734721843421,-2914.44,0.00022359,2]
[346122623,1734721843476,-1006.62630079,0.00022359,2]
[346122624,1734721843487,-352.72799642,0.00022359,2]
[346122626,1734721846178,-663.79109584,0.00022359,2]
[346122627,1734721846189,-743.59962691,0.0002236,2]
[346122628,1734721846199,-378.58880564,0.00022361,2]
[346122629,1734721846209,-3484.9267827,0.00022361,2]
[346122630,1734721846218,-3484.9267827,0.00022361,2]
[346122631,1734721846228,-354.86152271,0.00022363,2]
[346122632,1734721846238,-646.90828757,0.00022364,2]
[346122633,1734721846248,-378.58880564,0.00022366,2]
[346122634,1734721846258,-354.86152271,0.00022367,2]
[346122635,1734721846267,-743.59962691,0.00022368,2]
[346122636,1734721846277,-62693.5424745,0.0002237,2]
[346122637,1734721846286,-743.59962691,0.00022372,2]
[346122638,1734721846297,-646.90828757,0.00022372,2]
[346122639,1734721846306,-6933.4521391,0.00022373,2]
[346122640,1734721846315,-62693.5424745,0.00022374,2]
[346122641,1734721846325,-378.58880564,0.0002238,2]
[346122642,1734721846334,-378.58880564,0.00022381,2]
[346122643,1734721846343,-646.90828757,0.00022383,2]
[346122644,1734721846353,-354.86152271,0.00022384,2]
[346122645,1734721846362,-378.58880564,0.00022388,2]
[346122646,1734721846375,-200.0,0.00022389,2]
[346122647,1734721846384,-646.90828757,0.00022392,2]
[346122648,1734721846393,-354.86152271,0.00022395,2]
[346122649,1734721846402,-62693.5424745,0.00022397,2]
[346122650,1734721846412,-743.59962691,0.00022397,2]
[346122651,1734721846421,-6933.4521391,0.00022398,2]
[346122652,1734721846430,-3484.9267827,0.00022399,2]
[346122653,1734721846440,-62693.5424745,0.000224,2]
[346122654,1734721846449,-244.26,0.000225,2]
[346122655,1734721846459,-150.0,0.000225,2]
[346122656,1734721846468,-1500.0,0.000225,2]
[346122657,1734721846477,-164.81,0.00022504,2]
[346122658,1734721846487,-1000.0,0.00022575,2]
[346122659,1734721846496,-993.21,0.00022675,2]
[346122660,1734721846506,-1006.09,0.00022675,2]
[346122661,1734721846517,-990.3,0.00022678,2]
[346122662,1734721846526,-742.96046759,0.00022691,2]
[346122663,1734721846538,-165.46,0.00022707,2]
[346122664,1734721846548,-150.0,0.00022726,2]
[346122665,1734721846557,-381.99,0.00022726,2]
[346122666,1734721846567,-374.49,0.00022726,2]
[346122667,1734721846577,-150.0,0.00022726,2]
[346122669,1734721846587,-976.31,0.00022726,2]
[346122671,1734721846596,-436.13,0.00022726,2]
[346122672,1734721846605,-150.0,0.00022726,2]
[346122674,1734721846614,-1440.90404,0.0002277,2]
[346122676,1734721846623,-377.05,0.00022771,2]
[346122678,1734721846633,-993.94,0.00022783,2]
[346122681,1734721846642,-1151.433,0.00022791,2]
[346122682,1734721846651,-1000.0,0.00022793,2]
[346122685,1734721846660,-199.5852,0.000228,2]
[346122686,1734721846669,-150.0,0.000228,4]
[346122688,1734721846678,-374.05552607,0.000228,2]
[346122690,1734721846688,-1018.06,0.00022811,2]
[346122693,1734721846697,-500.0,0.00022816,2]
[346122694,1734721846706,-1010.54,0.00022825,2]
[346122696,1734721846716,-742.96046751,0.00022825,2]
[346122699,1734721846725,-2953.33117815,0.00022835,2]
[346122701,1734721846734,-980.55,0.00022857,2]
[346122703,1734721846743,-999.28,0.00022857,2]
[346122705,1734721846753,-986.48,0.00022857,2]
[346122706,1734721846762,-995.33,0.00022857,2]
[346122709,1734721846771,-1018.54,0.00022857,2]
[346122710,1734721846780,-811.13,0.0002289,2]
[346122712,1734721846789,-811.13,0.0002289,2]
[346122714,1734721846799,-811.13,0.0002289,2]
[346122716,1734721846808,-811.13,0.0002289,2]
[346122718,1734721846817,-5000.0,0.00022899,2]
[346122721,1734721846826,-754.81448048,0.00022899,2]
[346122722,1734721846835,-500.0,0.00022899,4]
[346122724,1734721846845,-526.76,0.00022899,4]
[346122727,1734721846854,-500.0,0.00022899,4]
[346122729,1734721846864,-500.0,0.00022899,4]
[346122730,1734721846873,-500.0,0.00022899,4]
[346122732,1734721846883,-500.0,0.00022899,4]
[346122734,1734721846892,-62057.08917179,0.00022899,3]
[346122739,1734721846921,-29132.8996568,0.00022899,3]
[346123173,1734721912598,500.0,0.00021064,2]
[346123174,1734722437202,12114.81162849,0.00021,2]
[346123175,1734722563012,899.13,0.00019542,2]
[346123176,1734722636514,250.0,0.00021453,2]
[346123177,1734722704581,150.0,0.000216,4]
[346123178,1734722708240,1391.98179563,0.00013,2]
[346123179,1734722727503,315.3,0.00010137,2]
[346123187,1734722764646,205.77317648,7e-05,2]
[346123213,1734723032373,-300.0,0.00012999,2]
[346123214,1734723032383,-36304.96264027,0.00013,2]
[346123737,1734723038178,-1007.15087781,0.00013,2]
[346123753,1734723038324,-862.24427429,0.00013,2]
[346123759,1734723038369,-311.94261899,0.00013,2]
[346123761,1734723038380,-10005.99996972,0.00013,2]
[346123777,1734723038516,-8175.73921953,0.00013,2]
[346123779,1734723038527,-6257.00764518,0.00013,2]
[346123781,1734723038539,-9014.79999,0.00013,2]
[346123784,1734723038552,-3891.145852,0.00013,2]
[346123786,1734723038563,-2925.272005,0.00013,2]
[346123788,1734723038580,-292.09648623,0.00013,2]
[346123791,1734723038591,-1690.6107,0.00013,2]
[346123795,1734723038620,-500.0,0.00013,2]
[346123871,1734723040372,-274.68,0.00013,2]
[346123878,1734723040428,-1071.774,0.00013,2]
[346123907,1734723040692,-4504.82227361,0.00013,2]
[346124157,1734723043243,-971.22063847,0.00013,2]
[346124162,1734723043254,-292.213,0.00013,2]
[346124201,1734723043389,-1391.0912456,0.00013,2]
[346124234,1734723043539,-3793.08,0.00013,2]
[346124237,1734723043552,-347.59,0.00013,2]
[346124240,1734723043563,-512.6900035,0.00013,2]
[346124243,1734723043574,-512.00786555,0.00013,2]
[346124248,1734723043586,-835.04991627,0.00013,2]
[346124401,1734723046211,-1881.93808319,0.00013,2]
[346124402,1734723046461,-19562.18391546,0.00013,2]
[346124403,1734723046474,-58381.10264386,0.00013,2]
[346124404,1734723046483,-420.0,0.00014256,2]
[346124405,1734723046493,-587.0,0.00015634,2]
[346124406,1734723046502,-3100.59595451,0.000157,2]
[346124407,1734723046511,-315.3,0.00016813,2]
[346124408,1734723046520,-823.0,0.00017145,2]
[346124409,1734723046530,-961.61,0.00019,2]
[346124410,1734723046540,-1568.18497486,0.0002,2]
[346124411,1734723046552,-1953.47037456,0.0002,2]
[346124412,1734723046563,-153.0,0.00020052,2]
[346124413,1734723046573,-164.81,0.0002123,2]
[346124414,1734723046582,-242.08,0.00021248,2]
[346124415,1734723046591,-250.0,0.00021307,2]
[346124416,1734723046601,-250.0,0.00021309,2]
[346124417,1734723046610,-1500.0,0.00021316,2]
[346124418,1734723046619,-200.0,0.00021322,2]
[346124419,1734723046628,-899.13,0.00021806,2]
[346124420,1734723046637,-481.587,0.0002185,2]
[346124421,1734723046647,-2500.0,0.00021866,2]
[346124422,1734723046656,-1348.77,0.00021874,2]
[346124423,1734723046665,-1348.77,0.0002188,2]
[346124424,1734723046674,-1348.77,0.00021886,2]
[346124425,1734723046683,-1348.77,0.00021891,2]
[346124426,1734723046692,-1348.77,0.00021897,2]
[346124427,1734723046701,-1348.77,0.00021903,2]
[346124428,1734723046711,-1348.77,0.00021909,2]
[346124429,1734723046724,-1348.77,0.00021915,2]
[346124430,1734723046733,-1000.0,0.00021917,2]
[346124431,1734723046742,-410.66569133,0.0002192,2]
[346124432,1734723555673,150.0,0.000235,120]
[346124434,1734723635652,163.45,0.00010137,2]
[346124435,1734723771950,294.525,0.000225,30]
[346124446,1734724091734,2659.0,0.000225,30]
[346124447,1734724095339,2659.0,0.000225,31]
[346124448,1734724117894,198.0,0.000235,120]
[346124465,1734724232450,-11238.3887576,0.00012112,2]
[346124466,1734724232463,-1106.67559325,0.00012112,2]
[346124467,1734724232525,-931.00001,0.00012112,2]
[346124468,1734724232537,-792.5651784,0.00012112,2]
[346124469,1734724232548,-4496.1404472,0.00012112,2]
[346124470,1734724232560,-12619.86719082,0.00012112,2]
[346124471,1734724232571,-51763.93794678,0.00012112,2]
[346124472,1734724232595,-2954.00989073,0.00012112,2]
[346124473,1734724232606,-425.8426708,0.00012112,2]
[346124474,1734724232665,-1956.0,0.00012112,2]
[346124475,1734724232676,-1282.60055755,0.00012112,2]
[346124476,1734724232736,-2527.85989938,0.00012112,2]
[346124477,1734724232747,-897.64948582,0.00012112,2]
[346124478,1734724232759,-316.88056164,0.00012112,2]